Workbook

Sheet ALOITUS
B1: TIETOJA TÄSTÄ MALLISTA
B2: Tämän Tapahtumasuunnittelu-työkirjan avulla seuraat projektin parametreja, tietoja ja kokonaissummia.
B3: Päivitä pylväskaaviot täyttämällä tarvittavat tiedot Projektiparametrit- ja Projektitiedot-laskentataulukoihin. Projektin summat -laskentataulukon Pivot-taulukko päivittyy automaattisesti.
B4: Kirjoita yrityksen nimi Parametrit-laskentataulukkoon. Se päivitetään automaattisesti myös muihin laskentataulukoihin.
B5: Huomautus:
B6: TAPAHTUMASUUNNITTELU-työkirjan kunkin laskentataulukon sarakkeessa A annetaan lisäohjeita. Kyseiset tekstit on piilotettu tarkoituksella. Jos haluat poistaa tekstin, valitse sarake A ja valitse sitten POISTA. Jos haluat tuoda tekstin näkyviin, valitse sarake A ja muuta sitten fontin väriä.
B7: Jos haluat lisätietoja laskentataulukossa olevista taulukoista, paina taulukossa VAIHTO ja sitten F10, valitse TAULUKKO-vaihtoehto ja valitse sitten VAIHTOEHTOINEN TEKSTI.

Sheet PROJEKTIPARAMETRIT
B1: Yrityksen nimi
B2: Tapahtumanhallintaprojektin seuranta
B3: =B1&" Luottamuksellinen" -> Yrityksen nimi Luottamuksellinen
B4: Varjostetut solut lasketaan puolestasi. Sinun ei tarvitse kirjoittaa niihin mitään.
B5: PROJEKTIN TYYPPI | C5: ASIAKKUUSPÄÄLLIKKÖ | D5: PROJEKTIPÄÄLLIKKÖ | E5: STRATEGIAPÄÄLLIKKÖ | F5: ULKOASUN SUUNNITTELIJA | G5: TAPAHTUMAN HENKILÖSTÖ | H5: JÄRJESTELMÄN-VALVONTA | I5: Summa
B6: Tapahtumastrategian kehitys | C6: 20% | D6: 10% | E6: 60% | F6: 0% | G6: 0% | H6: 10% | I6: =SUM(Parametrit[[#This Row],[ASIAKKUUSPÄÄLLIKKÖ]:[JÄRJESTELMÄN-VALVONTA]]) -> 100%
B7: Tapahtuman suunnittelu | C7: 20% | D7: 50% | E7: 10% | F7: 10% | G7: 0% | H7: 10% | I7: =SUM(Parametrit[[#This Row],[ASIAKKUUSPÄÄLLIKKÖ]:[JÄRJESTELMÄN-VALVONTA]]) -> 100%
B8: Tapahtuman ulkoasu | C8: 20% | D8: 20% | E8: 0% | F8: 50% | G8: 0% | H8: 10% | I8: =SUM(Parametrit[[#This Row],[ASIAKKUUSPÄÄLLIKKÖ]:[JÄRJESTELMÄN-VALVONTA]]) -> 100%
B9: Tapahtuman logistiikka | C9: 20% | D9: 60% | E9: 0% | F9: 0% | G9: 10% | H9: 10% | I9: =SUM(Parametrit[[#This Row],[ASIAKKUUSPÄÄLLIKKÖ]:[JÄRJESTELMÄN-VALVONTA]]) -> 100%
B10: Tapahtuman henkilöstö | C10: 20% | D10: 10% | E10: 0% | F10: 0% | G10: 60% | H10: 10% | I10: =SUM(Parametrit[[#This Row],[ASIAKKUUSPÄÄLLIKKÖ]:[JÄRJESTELMÄN-VALVONTA]]) -> 100%
B11: Tapahtuman arviointi | C11: 20% | D11: 20% | E11: 20% | F11: 20% | G11: 0% | H11: 20% | I11: =SUM(Parametrit[[#This Row],[ASIAKKUUSPÄÄLLIKKÖ]:[JÄRJESTELMÄN-VALVONTA]]) -> 100%
B12: Yhdistetyt hinnat | C12: 180 € | D12: 120 € | E12: 150 € | F12: 100 € | G12: 80 € | H12: 60 €
F14: Pylväskaavio, jossa näkyvät arvioidut ja toteutuneet työtunnit, on tässä solussa.
C15: ASIAKKUUSPÄÄLLIKKÖ | D15: PROJEKTIPÄÄLLIKKÖ | E15: STRATEGIAPÄÄLLIKKÖ | F15: ULKOASUN SUUNNITTELIJA | G15: TAPAHTUMAN HENKILÖSTÖ | H15: JÄRJESTELMÄNVALVONTA
B16: ARVIOIDUT KUSTANNUKSET | C16: =SUBTOTAL(109,Projektin_tiedot[ASIAKKUUSPÄÄLLIKKÖ]) -> 54,000.00 € | D16: =SUBTOTAL(109,Projektin_tiedot[PROJEKTIPÄÄLLIKKÖ]) -> 52,200.00 € | E16: =SUBTOTAL(109,Projektin_tiedot[STRATEGIAPÄÄLLIKKÖ]) -> 24,000.00 € | F16: =SUBTOTAL(109,Projektin_tiedot[ULKOASUN SUUNNITTELIJA]) -> 29,000.00 € | G16: =SUBTOTAL(109,Projektin_tiedot[TAPAHTUMAN HENKILÖSTÖ]) -> 13,200.00 € | H16: =SUBTOTAL(109,Projektin_tiedot[JÄRJESTELMÄN-VALVONTA]) -> 9,000.00 €
B17: TOTEUTUNEET KUSTANNUKSET | C17: =SUBTOTAL(109,Projektin_tiedot[[ASIAKKUUSPÄÄLLIKKÖ ]]) -> 54,360.00 € | D17: =SUBTOTAL(109,Projektin_tiedot[[PROJEKTIPÄÄLLIKKÖ ]]) -> 51,540.00 € | E17: =SUBTOTAL(109,Projektin_tiedot[[STRATEGIAPÄÄLLIKKÖ ]]) -> 25,650.00 € | F17: =SUBTOTAL(109,Projektin_tiedot[[ULKOASUN SUUNNITTELIJA ]]) -> 28,900.00 € | G17: =SUBTOTAL(109,Projektin_tiedot[[TAPAHTUMAN HENKILÖSTÖ ]]) -> 13,400.00 € | H17: =SUBTOTAL(109,Projektin_tiedot[[JÄRJESTELMÄNVALVONTA ]]) -> 9,060.00 €
B18: ARVIOIDUT TUNNIT | C18: =C16/$C$12 -> 300.00 | D18: =D16/$C$12 -> 290.00 | E18: 133.33 | F18: 161.11 | G18: 73.33 | H18: 50.00
B19: TOTEUTUNEET TUNNIT | C19: =C17/$C$12 -> 302.00 | D19: =D17/$C$12 -> 286.33 | E19: =E17/$C$12 -> 142.50 | F19: =F17/$C$12 -> 160.56 | G19: =G17/$C$12 -> 74.44 | H19: =H17/$C$12 -> 50.33

Sheet PROJEKTIN TIEDOT
B1: =PROJEKTIPARAMETRIT!B1 -> Yrityksen nimi
B2: Tapahtumanhallintaprojektin seuranta
B3: =PROJEKTIPARAMETRIT!B3 -> Yrityksen nimi Luottamuksellinen
A4: Kirjoita tiedot Projektin tiedot -taulukkoon alkaen oikealla olevasta solusta. TIEDOKSI Jos haluat lisätä rivin oikealla olevaan taulukkoon, valitse taulukon tekstiosassa (ei summat-rivillä) oikean alanurkan solu ja paina SARKAINTA, tai paina VAIHTO+F10 taulukossa, johon haluat lisätä rivin, ja valitse sitten Lisää | Taulukon rivejä yläpuolelle/alapuolelle. Varmista, että poistat kaikki käyttämättömät rivit. PROJEKTIN SUMMAT -Pivot-taulukko käyttää taulukon kaikkia soluja, joten tulokset olisivat muuten virheellisiä. | B4: PROJEKTIN NIMI | C4: PROJEKTIN TYYPPI | D4: ARVIOITU ALOITUSAIKA | E4: ARVIOITU PÄÄTTYMISAIKA | F4: TOTEUTUNUT ALOITUSAIKA | G4: TOTEUTUNUT PÄÄTTYMISAIKA | H4: ARVIOITU TYÖMÄÄRÄ | I4: TOTEUTUNUT TYÖMÄÄRÄ | J4: ARVIOITU KESTO | K4: TOTEUTUNUT KESTO | L4: ASIAKKUUSPÄÄLLIKKÖ | M4: PROJEKTIPÄÄLLIKKÖ | N4: STRATEGIAPÄÄLLIKKÖ | O4: ULKOASUN SUUNNITTELIJA | P4: TAPAHTUMAN HENKILÖSTÖ | Q4: JÄRJESTELMÄN-VALVONTA | R4: ASIAKKUUSPÄÄLLIKKÖ | S4: PROJEKTIPÄÄLLIKKÖ | T4: STRATEGIAPÄÄLLIKKÖ | U4: ULKOASUN SUUNNITTELIJA | V4: TAPAHTUMAN HENKILÖSTÖ | W4: JÄRJESTELMÄNVALVONTA
B5: Projekti 1 | C5: Tapahtumastrategian kehitys | D5: =DATE(YEAR(TODAY()),6,9) -> 2022-06-09 | E5: =DATE(YEAR(TODAY()),8,7) -> 2022-08-07 | F5: =DATE(YEAR(TODAY()),6,29) -> 2022-06-29 | G5: =DATE(YEAR(TODAY()),9,3) -> 2022-09-03 | H5: 200 | I5: 220 | J5: =DAYS360(Projektin_tiedot[[#This Row],[ARVIOITU ALOITUSAIKA]],Projektin_tiedot[[#This Row],[ARVIOITU PÄÄTTYMISAIKA]],FALSE) -> 58 | K5: =DAYS360(Projektin_tiedot[[#This Row],[TOTEUTUNUT ALOITUSAIKA]],Projektin_tiedot[[#This Row],[TOTEUTUNUT PÄÄTTYMISAIKA]],FALSE) -> 64 | L5: =INDEX(Parametrit[],MATCH(Projektin_tiedot[[#This Row],[PROJEKTIN TYYPPI]],Parametrit[PROJEKTIN TYYPPI],0),MATCH(Projektin_tiedot[[#Headers],[ASIAKKUUSPÄÄLLIKKÖ]],Parametrit[#Headers],0))*INDEX(PROJEKTIPARAMETRIT!$B$12:$H$12,1,MATCH(Projektin_tiedot[[#Headers],[ASIAKKUUSPÄÄLLIKKÖ]],Parametrit[#Headers],0))*Projektin_tiedot[[#This Row],[ARVIOITU TYÖMÄÄRÄ]] -> 7,200 € | M5: =INDEX(Parametrit[],MATCH(Projektin_tiedot[[#This Row],[PROJEKTIN TYYPPI]],Parametrit[PROJEKTIN TYYPPI],0),MATCH(Projektin_tiedot[[#Headers],[PROJEKTIPÄÄLLIKKÖ]],Parametrit[#Headers],0))*INDEX(PROJEKTIPARAMETRIT!$B$12:$H$12,1,MATCH(Projektin_tiedot[[#Headers],[PROJEKTIPÄÄLLIKKÖ]],Parametrit[#Headers],0))*Projektin_tiedot[[#This Row],[ARVIOITU TYÖMÄÄRÄ]] -> 2,400 € | N5: =INDEX(Parametrit[],MATCH(Projektin_tiedot[[#This Row],[PROJEKTIN TYYPPI]],Parametrit[PROJEKTIN TYYPPI],0),MATCH(Projektin_tiedot[[#Headers],[STRATEGIAPÄÄLLIKKÖ]],Parametrit[#Headers],0))*INDEX(PROJEKTIPARAMETRIT!$B$12:$H$12,1,MATCH(Projektin_tiedot[[#Headers],[STRATEGIAPÄÄLLIKKÖ]],Parametrit[#Headers],0))*Projektin_tiedot[[#This Row],[ARVIOITU TYÖMÄÄRÄ]] -> 18,000 € | O5: =INDEX(Parametrit[],MATCH(Projektin_tiedot[[#This Row],[PROJEKTIN TYYPPI]],Parametrit[PROJEKTIN TYYPPI],0),MATCH(Projektin_tiedot[[#Headers],[ULKOASUN SUUNNITTELIJA]],Parametrit[#Headers],0))*INDEX(PROJEKTIPARAMETRIT!$B$12:$H$12,1,MATCH(Projektin_tiedot[[#Headers],[ULKOASUN SUUNNITTELIJA]],Parametrit[#Headers],0))*Projektin_tiedot[[#This Row],[ARVIOITU TYÖMÄÄRÄ]] -> 0 € | P5: =INDEX(Parametrit[],MATCH(Projektin_tiedot[[#This Row],[PROJEKTIN TYYPPI]],Parametrit[PROJEKTIN TYYPPI],0),MATCH(Projektin_tiedot[[#Headers],[TAPAHTUMAN HENKILÖSTÖ]],Parametrit[#Headers],0))*INDEX(PROJEKTIPARAMETRIT!$B$12:$H$12,1,MATCH(Projektin_tiedot[[#Headers],[TAPAHTUMAN HENKILÖSTÖ]],Parametrit[#Headers],0))*Projektin_tiedot[[#This Row],[ARVIOITU TYÖMÄÄRÄ]] -> 0 € | Q5: =INDEX(Parametrit[],MATCH(Projektin_tiedot[[#This Row],[PROJEKTIN TYYPPI]],Parametrit[PROJEKTIN TYYPPI],0),MATCH(Projektin_tiedot[[#Headers],[JÄRJESTELMÄN-VALVONTA]],Parametrit[#Headers],0))*INDEX(PROJEKTIPARAMETRIT!$B$12:$H$12,1,MATCH(Projektin_tiedot[[#Headers],[JÄRJESTELMÄN-VALVONTA]],Parametrit[#Headers],0))*Projektin_tiedot[[#This Row],[ARVIOITU TYÖMÄÄRÄ]] -> 1,200 € | R5: =INDEX(Parametrit[],MATCH(Projektin_tiedot[[#This Row],[PROJEKTIN TYYPPI]],Parametrit[PROJEKTIN TYYPPI],0),MATCH(Projektin_tiedot[[#Headers],[ASIAKKUUSPÄÄLLIKKÖ]],Parametrit[#Headers],0))*INDEX(PROJEKTIPARAMETRIT!$B$12:$H$12,1,MATCH(Projektin_tiedot[[#Headers],[ASIAKKUUSPÄÄLLIKKÖ]],Parametrit[#Headers],0))*Projektin_tiedot[[#This Row],[TOTEUTUNUT TYÖMÄÄRÄ]] -> 7,920 € | S5: =INDEX(Parametrit[],MATCH(Projektin_tiedot[[#This Row],[PROJEKTIN TYYPPI]],Parametrit[PROJEKTIN TYYPPI],0),MATCH(Projektin_tiedot[[#Headers],[PROJEKTIPÄÄLLIKKÖ]],Parametrit[#Headers],0))*INDEX(PROJEKTIPARAMETRIT!$B$12:$H$12,1,MATCH(Projektin_tiedot[[#Headers],[PROJEKTIPÄÄLLIKKÖ]],Parametrit[#Headers],0))*Projektin_tiedot[[#This Row],[TOTEUTUNUT TYÖMÄÄRÄ]] -> 2,640 € | T5: =INDEX(Parametrit[],MATCH(Projektin_tiedot[[#This Row],[PROJEKTIN TYYPPI]],Parametrit[PROJEKTIN TYYPPI],0),MATCH(Projektin_tiedot[[#Headers],[STRATEGIAPÄÄLLIKKÖ]],Parametrit[#Headers],0))*INDEX(PROJEKTIPARAMETRIT!$B$12:$H$12,1,MATCH(Projektin_tiedot[[#Headers],[STRATEGIAPÄÄLLIKKÖ]],Parametrit[#Headers],0))*Projektin_tiedot[[#This Row],[TOTEUTUNUT TYÖMÄÄRÄ]] -> 19,800 € | U5: =INDEX(Parametrit[],MATCH(Projektin_tiedot[[#This Row],[PROJEKTIN TYYPPI]],Parametrit[PROJEKTIN TYYPPI],0),MATCH(Projektin_tiedot[[#Headers],[ULKOASUN SUUNNITTELIJA]],Parametrit[#Headers],0))*INDEX(PROJEKTIPARAMETRIT!$B$12:$H$12,1,MATCH(Projektin_tiedot[[#Headers],[ULKOASUN SUUNNITTELIJA]],Parametrit[#Headers],0))*Projektin_tiedot[[#This Row],[TOTEUTUNUT TYÖMÄÄRÄ]] -> 0 € | V5: =INDEX(Parametrit[],MATCH(Projektin_tiedot[[#This Row],[PROJEKTIN TYYPPI]],Parametrit[PROJEKTIN TYYPPI],0),MATCH(Projektin_tiedot[[#Headers],[TAPAHTUMAN HENKILÖSTÖ]],Parametrit[#Headers],0))*INDEX(PROJEKTIPARAMETRIT!$B$12:$H$12,1,MATCH(Projektin_tiedot[[#Headers],[TAPAHTUMAN HENKILÖSTÖ]],Parametrit[#Headers],0))*Projektin_tiedot[[#This Row],[TOTEUTUNUT TYÖMÄÄRÄ]] -> 0 € | W5: =INDEX(Parametrit[],MATCH(Projektin_tiedot[[#This Row],[PROJEKTIN TYYPPI]],Parametrit[PROJEKTIN TYYPPI],0),MATCH(Projektin_tiedot[[#Headers],[JÄRJESTELMÄN-VALVONTA]],Parametrit[#Headers],0))*INDEX(PROJEKTIPARAMETRIT!$B$12:$H$12,1,MATCH(Projektin_tiedot[[#Headers],[JÄRJESTELMÄN-VALVONTA]],Parametrit[#Headers],0))*Projektin_tiedot[[#This Row],[TOTEUTUNUT TYÖMÄÄRÄ]] -> 1,320 €
B6: Projekti 2 | C6: Tapahtuman suunnittelu | D6: =DATE(YEAR(TODAY())+1,6,25) -> 2023-06-25 | E6: =DATE(YEAR(TODAY())+1,7,27) -> 2023-07-27 | F6: =DATE(YEAR(TODAY()),7,15) -> 2022-07-15 | G6: =DATE(YEAR(TODAY())+1,8,25) -> 2023-08-25 | H6: 400 | I6: 390 | J6: =DAYS360(Projektin_tiedot[[#This Row],[ARVIOITU ALOITUSAIKA]],Projektin_tiedot[[#This Row],[ARVIOITU PÄÄTTYMISAIKA]],FALSE) -> 32 | K6: =DAYS360(Projektin_tiedot[[#This Row],[TOTEUTUNUT ALOITUSAIKA]],Projektin_tiedot[[#This Row],[TOTEUTUNUT PÄÄTTYMISAIKA]],FALSE) -> 400 | L6: =INDEX(Parametrit[],MATCH(Projektin_tiedot[[#This Row],[PROJEKTIN TYYPPI]],Parametrit[PROJEKTIN TYYPPI],0),MATCH(Projektin_tiedot[[#Headers],[ASIAKKUUSPÄÄLLIKKÖ]],Parametrit[#Headers],0))*INDEX(PROJEKTIPARAMETRIT!$B$12:$H$12,1,MATCH(Projektin_tiedot[[#Headers],[ASIAKKUUSPÄÄLLIKKÖ]],Parametrit[#Headers],0))*Projektin_tiedot[[#This Row],[ARVIOITU TYÖMÄÄRÄ]] -> 14,400 € | M6: =INDEX(Parametrit[],MATCH(Projektin_tiedot[[#This Row],[PROJEKTIN TYYPPI]],Parametrit[PROJEKTIN TYYPPI],0),MATCH(Projektin_tiedot[[#Headers],[PROJEKTIPÄÄLLIKKÖ]],Parametrit[#Headers],0))*INDEX(PROJEKTIPARAMETRIT!$B$12:$H$12,1,MATCH(Projektin_tiedot[[#Headers],[PROJEKTIPÄÄLLIKKÖ]],Parametrit[#Headers],0))*Projektin_tiedot[[#This Row],[ARVIOITU TYÖMÄÄRÄ]] -> 24,000 € | N6: =INDEX(Parametrit[],MATCH(Projektin_tiedot[[#This Row],[PROJEKTIN TYYPPI]],Parametrit[PROJEKTIN TYYPPI],0),MATCH(Projektin_tiedot[[#Headers],[STRATEGIAPÄÄLLIKKÖ]],Parametrit[#Headers],0))*INDEX(PROJEKTIPARAMETRIT!$B$12:$H$12,1,MATCH(Projektin_tiedot[[#Headers],[STRATEGIAPÄÄLLIKKÖ]],Parametrit[#Headers],0))*Projektin_tiedot[[#This Row],[ARVIOITU TYÖMÄÄRÄ]] -> 6,000 € | O6: =INDEX(Parametrit[],MATCH(Projektin_tiedot[[#This Row],[PROJEKTIN TYYPPI]],Parametrit[PROJEKTIN TYYPPI],0),MATCH(Projektin_tiedot[[#Headers],[ULKOASUN SUUNNITTELIJA]],Parametrit[#Headers],0))*INDEX(PROJEKTIPARAMETRIT!$B$12:$H$12,1,MATCH(Projektin_tiedot[[#Headers],[ULKOASUN SUUNNITTELIJA]],Parametrit[#Headers],0))*Projektin_tiedot[[#This Row],[ARVIOITU TYÖMÄÄRÄ]] -> 4,000 € | P6: =INDEX(Parametrit[],MATCH(Projektin_tiedot[[#This Row],[PROJEKTIN TYYPPI]],Parametrit[PROJEKTIN TYYPPI],0),MATCH(Projektin_tiedot[[#Headers],[TAPAHTUMAN HENKILÖSTÖ]],Parametrit[#Headers],0))*INDEX(PROJEKTIPARAMETRIT!$B$12:$H$12,1,MATCH(Projektin_tiedot[[#Headers],[TAPAHTUMAN HENKILÖSTÖ]],Parametrit[#Headers],0))*Projektin_tiedot[[#This Row],[ARVIOITU TYÖMÄÄRÄ]] -> 0 € | Q6: =INDEX(Parametrit[],MATCH(Projektin_tiedot[[#This Row],[PROJEKTIN TYYPPI]],Parametrit[PROJEKTIN TYYPPI],0),MATCH(Projektin_tiedot[[#Headers],[JÄRJESTELMÄN-VALVONTA]],Parametrit[#Headers],0))*INDEX(PROJEKTIPARAMETRIT!$B$12:$H$12,1,MATCH(Projektin_tiedot[[#Headers],[JÄRJESTELMÄN-VALVONTA]],Parametrit[#Headers],0))*Projektin_tiedot[[#This Row],[ARVIOITU TYÖMÄÄRÄ]] -> 2,400 € | R6: =INDEX(Parametrit[],MATCH(Projektin_tiedot[[#This Row],[PROJEKTIN TYYPPI]],Parametrit[PROJEKTIN TYYPPI],0),MATCH(Projektin_tiedot[[#Headers],[ASIAKKUUSPÄÄLLIKKÖ]],Parametrit[#Headers],0))*INDEX(PROJEKTIPARAMETRIT!$B$12:$H$12,1,MATCH(Projektin_tiedot[[#Headers],[ASIAKKUUSPÄÄLLIKKÖ]],Parametrit[#Headers],0))*Projektin_tiedot[[#This Row],[TOTEUTUNUT TYÖMÄÄRÄ]] -> 14,040 € | S6: =INDEX(Parametrit[],MATCH(Projektin_tiedot[[#This Row],[PROJEKTIN TYYPPI]],Parametrit[PROJEKTIN TYYPPI],0),MATCH(Projektin_tiedot[[#Headers],[PROJEKTIPÄÄLLIKKÖ]],Parametrit[#Headers],0))*INDEX(PROJEKTIPARAMETRIT!$B$12:$H$12,1,MATCH(Projektin_tiedot[[#Headers],[PROJEKTIPÄÄLLIKKÖ]],Parametrit[#Headers],0))*Projektin_tiedot[[#This Row],[TOTEUTUNUT TYÖMÄÄRÄ]] -> 23,400 € | T6: =INDEX(Parametrit[],MATCH(Projektin_tiedot[[#This Row],[PROJEKTIN TYYPPI]],Parametrit[PROJEKTIN TYYPPI],0),MATCH(Projektin_tiedot[[#Headers],[STRATEGIAPÄÄLLIKKÖ]],Parametrit[#Headers],0))*INDEX(PROJEKTIPARAMETRIT!$B$12:$H$12,1,MATCH(Projektin_tiedot[[#Headers],[STRATEGIAPÄÄLLIKKÖ]],Parametrit[#Headers],0))*Projektin_tiedot[[#This Row],[TOTEUTUNUT TYÖMÄÄRÄ]] -> 5,850 € | U6: =INDEX(Parametrit[],MATCH(Projektin_tiedot[[#This Row],[PROJEKTIN TYYPPI]],Parametrit[PROJEKTIN TYYPPI],0),MATCH(Projektin_tiedot[[#Headers],[ULKOASUN SUUNNITTELIJA]],Parametrit[#Headers],0))*INDEX(PROJEKTIPARAMETRIT!$B$12:$H$12,1,MATCH(Projektin_tiedot[[#Headers],[ULKOASUN SUUNNITTELIJA]],Parametrit[#Headers],0))*Projektin_tiedot[[#This Row],[TOTEUTUNUT TYÖMÄÄRÄ]] -> 3,900 € | V6: =INDEX(Parametrit[],MATCH(Projektin_tiedot[[#This Row],[PROJEKTIN TYYPPI]],Parametrit[PROJEKTIN TYYPPI],0),MATCH(Projektin_tiedot[[#Headers],[TAPAHTUMAN HENKILÖSTÖ]],Parametrit[#Headers],0))*INDEX(PROJEKTIPARAMETRIT!$B$12:$H$12,1,MATCH(Projektin_tiedot[[#Headers],[TAPAHTUMAN HENKILÖSTÖ]],Parametrit[#Headers],0))*Projektin_tiedot[[#This Row],[TOTEUTUNUT TYÖMÄÄRÄ]] -> 0 € | W6: =INDEX(Parametrit[],MATCH(Projektin_tiedot[[#This Row],[PROJEKTIN TYYPPI]],Parametrit[PROJEKTIN TYYPPI],0),MATCH(Projektin_tiedot[[#Headers],[JÄRJESTELMÄN-VALVONTA]],Parametrit[#Headers],0))*INDEX(PROJEKTIPARAMETRIT!$B$12:$H$12,1,MATCH(Projektin_tiedot[[#Headers],[JÄRJESTELMÄN-VALVONTA]],Parametrit[#Headers],0))*Projektin_tiedot[[#This Row],[TOTEUTUNUT TYÖMÄÄRÄ]] -> 2,340 €
B7: Projekti 3 | C7: Tapahtuman ulkoasu | D7: =DATE(YEAR(TODAY())+2,7,12) -> 2024-07-12 | E7: =DATE(YEAR(TODAY())+2,9,19) -> 2024-09-19 | F7: 2025-08-07 | G7: 2025-10-10 | H7: 500 | I7: 500 | J7: =DAYS360(Projektin_tiedot[[#This Row],[ARVIOITU ALOITUSAIKA]],Projektin_tiedot[[#This Row],[ARVIOITU PÄÄTTYMISAIKA]],FALSE) -> 67 | K7: =DAYS360(Projektin_tiedot[[#This Row],[TOTEUTUNUT ALOITUSAIKA]],Projektin_tiedot[[#This Row],[TOTEUTUNUT PÄÄTTYMISAIKA]],FALSE) -> 63 | L7: =INDEX(Parametrit[],MATCH(Projektin_tiedot[[#This Row],[PROJEKTIN TYYPPI]],Parametrit[PROJEKTIN TYYPPI],0),MATCH(Projektin_tiedot[[#Headers],[ASIAKKUUSPÄÄLLIKKÖ]],Parametrit[#Headers],0))*INDEX(PROJEKTIPARAMETRIT!$B$12:$H$12,1,MATCH(Projektin_tiedot[[#Headers],[ASIAKKUUSPÄÄLLIKKÖ]],Parametrit[#Headers],0))*Projektin_tiedot[[#This Row],[ARVIOITU TYÖMÄÄRÄ]] -> 18,000 € | M7: =INDEX(Parametrit[],MATCH(Projektin_tiedot[[#This Row],[PROJEKTIN TYYPPI]],Parametrit[PROJEKTIN TYYPPI],0),MATCH(Projektin_tiedot[[#Headers],[PROJEKTIPÄÄLLIKKÖ]],Parametrit[#Headers],0))*INDEX(PROJEKTIPARAMETRIT!$B$12:$H$12,1,MATCH(Projektin_tiedot[[#Headers],[PROJEKTIPÄÄLLIKKÖ]],Parametrit[#Headers],0))*Projektin_tiedot[[#This Row],[ARVIOITU TYÖMÄÄRÄ]] -> 12,000 € | N7: =INDEX(Parametrit[],MATCH(Projektin_tiedot[[#This Row],[PROJEKTIN TYYPPI]],Parametrit[PROJEKTIN TYYPPI],0),MATCH(Projektin_tiedot[[#Headers],[STRATEGIAPÄÄLLIKKÖ]],Parametrit[#Headers],0))*INDEX(PROJEKTIPARAMETRIT!$B$12:$H$12,1,MATCH(Projektin_tiedot[[#Headers],[STRATEGIAPÄÄLLIKKÖ]],Parametrit[#Headers],0))*Projektin_tiedot[[#This Row],[ARVIOITU TYÖMÄÄRÄ]] -> 0 € | O7: =INDEX(Parametrit[],MATCH(Projektin_tiedot[[#This Row],[PROJEKTIN TYYPPI]],Parametrit[PROJEKTIN TYYPPI],0),MATCH(Projektin_tiedot[[#Headers],[ULKOASUN SUUNNITTELIJA]],Parametrit[#Headers],0))*INDEX(PROJEKTIPARAMETRIT!$B$12:$H$12,1,MATCH(Projektin_tiedot[[#Headers],[ULKOASUN SUUNNITTELIJA]],Parametrit[#Headers],0))*Projektin_tiedot[[#This Row],[ARVIOITU TYÖMÄÄRÄ]] -> 25,000 € | P7: =INDEX(Parametrit[],MATCH(Projektin_tiedot[[#This Row],[PROJEKTIN TYYPPI]],Parametrit[PROJEKTIN TYYPPI],0),MATCH(Projektin_tiedot[[#Headers],[TAPAHTUMAN HENKILÖSTÖ]],Parametrit[#Headers],0))*INDEX(PROJEKTIPARAMETRIT!$B$12:$H$12,1,MATCH(Projektin_tiedot[[#Headers],[TAPAHTUMAN HENKILÖSTÖ]],Parametrit[#Headers],0))*Projektin_tiedot[[#This Row],[ARVIOITU TYÖMÄÄRÄ]] -> 0 € | Q7: =INDEX(Parametrit[],MATCH(Projektin_tiedot[[#This Row],[PROJEKTIN TYYPPI]],Parametrit[PROJEKTIN TYYPPI],0),MATCH(Projektin_tiedot[[#Headers],[JÄRJESTELMÄN-VALVONTA]],Parametrit[#Headers],0))*INDEX(PROJEKTIPARAMETRIT!$B$12:$H$12,1,MATCH(Projektin_tiedot[[#Headers],[JÄRJESTELMÄN-VALVONTA]],Parametrit[#Headers],0))*Projektin_tiedot[[#This Row],[ARVIOITU TYÖMÄÄRÄ]] -> 3,000 € | R7: =INDEX(Parametrit[],MATCH(Projektin_tiedot[[#This Row],[PROJEKTIN TYYPPI]],Parametrit[PROJEKTIN TYYPPI],0),MATCH(Projektin_tiedot[[#Headers],[ASIAKKUUSPÄÄLLIKKÖ]],Parametrit[#Headers],0))*INDEX(PROJEKTIPARAMETRIT!$B$12:$H$12,1,MATCH(Projektin_tiedot[[#Headers],[ASIAKKUUSPÄÄLLIKKÖ]],Parametrit[#Headers],0))*Projektin_tiedot[[#This Row],[TOTEUTUNUT TYÖMÄÄRÄ]] -> 18,000 € | S7: =INDEX(Parametrit[],MATCH(Projektin_tiedot[[#This Row],[PROJEKTIN TYYPPI]],Parametrit[PROJEKTIN TYYPPI],0),MATCH(Projektin_tiedot[[#Headers],[PROJEKTIPÄÄLLIKKÖ]],Parametrit[#Headers],0))*INDEX(PROJEKTIPARAMETRIT!$B$12:$H$12,1,MATCH(Projektin_tiedot[[#Headers],[PROJEKTIPÄÄLLIKKÖ]],Parametrit[#Headers],0))*Projektin_tiedot[[#This Row],[TOTEUTUNUT TYÖMÄÄRÄ]] -> 12,000 € | T7: =INDEX(Parametrit[],MATCH(Projektin_tiedot[[#This Row],[PROJEKTIN TYYPPI]],Parametrit[PROJEKTIN TYYPPI],0),MATCH(Projektin_tiedot[[#Headers],[STRATEGIAPÄÄLLIKKÖ]],Parametrit[#Headers],0))*INDEX(PROJEKTIPARAMETRIT!$B$12:$H$12,1,MATCH(Projektin_tiedot[[#Headers],[STRATEGIAPÄÄLLIKKÖ]],Parametrit[#Headers],0))*Projektin_tiedot[[#This Row],[TOTEUTUNUT TYÖMÄÄRÄ]] -> 0 € | U7: =INDEX(Parametrit[],MATCH(Projektin_tiedot[[#This Row],[PROJEKTIN TYYPPI]],Parametrit[PROJEKTIN TYYPPI],0),MATCH(Projektin_tiedot[[#Headers],[ULKOASUN SUUNNITTELIJA]],Parametrit[#Headers],0))*INDEX(PROJEKTIPARAMETRIT!$B$12:$H$12,1,MATCH(Projektin_tiedot[[#Headers],[ULKOASUN SUUNNITTELIJA]],Parametrit[#Headers],0))*Projektin_tiedot[[#This Row],[TOTEUTUNUT TYÖMÄÄRÄ]] -> 25,000 € | V7: =INDEX(Parametrit[],MATCH(Projektin_tiedot[[#This Row],[PROJEKTIN TYYPPI]],Parametrit[PROJEKTIN TYYPPI],0),MATCH(Projektin_tiedot[[#Headers],[TAPAHTUMAN HENKILÖSTÖ]],Parametrit[#Headers],0))*INDEX(PROJEKTIPARAMETRIT!$B$12:$H$12,1,MATCH(Projektin_tiedot[[#Headers],[TAPAHTUMAN HENKILÖSTÖ]],Parametrit[#Headers],0))*Projektin_tiedot[[#This Row],[TOTEUTUNUT TYÖMÄÄRÄ]] -> 0 € | W7: =INDEX(Parametrit[],MATCH(Projektin_tiedot[[#This Row],[PROJEKTIN TYYPPI]],Parametrit[PROJEKTIN TYYPPI],0),MATCH(Projektin_tiedot[[#Headers],[JÄRJESTELMÄN-VALVONTA]],Parametrit[#Headers],0))*INDEX(PROJEKTIPARAMETRIT!$B$12:$H$12,1,MATCH(Projektin_tiedot[[#Headers],[JÄRJESTELMÄN-VALVONTA]],Parametrit[#Headers],0))*Projektin_tiedot[[#This Row],[TOTEUTUNUT TYÖMÄÄRÄ]] -> 3,000 €
B8: Projekti 4 | C8: Tapahtuman logistiikka | D8: =DATE(YEAR(TODAY())+3,7,30) -> 2025-07-30 | E8: =DATE(YEAR(TODAY())+3,9,28) -> 2025-09-28 | F8: =DATE(YEAR(TODAY())+3,9,14) -> 2025-09-14 | G8: =DATE(YEAR(TODAY())+3,11,13) -> 2025-11-13 | H8: 150 | I8: 145 | J8: =DAYS360(Projektin_tiedot[[#This Row],[ARVIOITU ALOITUSAIKA]],Projektin_tiedot[[#This Row],[ARVIOITU PÄÄTTYMISAIKA]],FALSE) -> 58 | K8: =DAYS360(Projektin_tiedot[[#This Row],[TOTEUTUNUT ALOITUSAIKA]],Projektin_tiedot[[#This Row],[TOTEUTUNUT PÄÄTTYMISAIKA]],FALSE) -> 59 | L8: =INDEX(Parametrit[],MATCH(Projektin_tiedot[[#This Row],[PROJEKTIN TYYPPI]],Parametrit[PROJEKTIN TYYPPI],0),MATCH(Projektin_tiedot[[#Headers],[ASIAKKUUSPÄÄLLIKKÖ]],Parametrit[#Headers],0))*INDEX(PROJEKTIPARAMETRIT!$B$12:$H$12,1,MATCH(Projektin_tiedot[[#Headers],[ASIAKKUUSPÄÄLLIKKÖ]],Parametrit[#Headers],0))*Projektin_tiedot[[#This Row],[ARVIOITU TYÖMÄÄRÄ]] -> 5,400 € | M8: =INDEX(Parametrit[],MATCH(Projektin_tiedot[[#This Row],[PROJEKTIN TYYPPI]],Parametrit[PROJEKTIN TYYPPI],0),MATCH(Projektin_tiedot[[#Headers],[PROJEKTIPÄÄLLIKKÖ]],Parametrit[#Headers],0))*INDEX(PROJEKTIPARAMETRIT!$B$12:$H$12,1,MATCH(Projektin_tiedot[[#Headers],[PROJEKTIPÄÄLLIKKÖ]],Parametrit[#Headers],0))*Projektin_tiedot[[#This Row],[ARVIOITU TYÖMÄÄRÄ]] -> 10,800 € | N8: =INDEX(Parametrit[],MATCH(Projektin_tiedot[[#This Row],[PROJEKTIN TYYPPI]],Parametrit[PROJEKTIN TYYPPI],0),MATCH(Projektin_tiedot[[#Headers],[STRATEGIAPÄÄLLIKKÖ]],Parametrit[#Headers],0))*INDEX(PROJEKTIPARAMETRIT!$B$12:$H$12,1,MATCH(Projektin_tiedot[[#Headers],[STRATEGIAPÄÄLLIKKÖ]],Parametrit[#Headers],0))*Projektin_tiedot[[#This Row],[ARVIOITU TYÖMÄÄRÄ]] -> 0 € | O8: =INDEX(Parametrit[],MATCH(Projektin_tiedot[[#This Row],[PROJEKTIN TYYPPI]],Parametrit[PROJEKTIN TYYPPI],0),MATCH(Projektin_tiedot[[#Headers],[ULKOASUN SUUNNITTELIJA]],Parametrit[#Headers],0))*INDEX(PROJEKTIPARAMETRIT!$B$12:$H$12,1,MATCH(Projektin_tiedot[[#Headers],[ULKOASUN SUUNNITTELIJA]],Parametrit[#Headers],0))*Projektin_tiedot[[#This Row],[ARVIOITU TYÖMÄÄRÄ]] -> 0 € | P8: =INDEX(Parametrit[],MATCH(Projektin_tiedot[[#This Row],[PROJEKTIN TYYPPI]],Parametrit[PROJEKTIN TYYPPI],0),MATCH(Projektin_tiedot[[#Headers],[TAPAHTUMAN HENKILÖSTÖ]],Parametrit[#Headers],0))*INDEX(PROJEKTIPARAMETRIT!$B$12:$H$12,1,MATCH(Projektin_tiedot[[#Headers],[TAPAHTUMAN HENKILÖSTÖ]],Parametrit[#Headers],0))*Projektin_tiedot[[#This Row],[ARVIOITU TYÖMÄÄRÄ]] -> 1,200 € | Q8: =INDEX(Parametrit[],MATCH(Projektin_tiedot[[#This Row],[PROJEKTIN TYYPPI]],Parametrit[PROJEKTIN TYYPPI],0),MATCH(Projektin_tiedot[[#Headers],[JÄRJESTELMÄN-VALVONTA]],Parametrit[#Headers],0))*INDEX(PROJEKTIPARAMETRIT!$B$12:$H$12,1,MATCH(Projektin_tiedot[[#Headers],[JÄRJESTELMÄN-VALVONTA]],Parametrit[#Headers],0))*Projektin_tiedot[[#This Row],[ARVIOITU TYÖMÄÄRÄ]] -> 900 € | R8: =INDEX(Parametrit[],MATCH(Projektin_tiedot[[#This Row],[PROJEKTIN TYYPPI]],Parametrit[PROJEKTIN TYYPPI],0),MATCH(Projektin_tiedot[[#Headers],[ASIAKKUUSPÄÄLLIKKÖ]],Parametrit[#Headers],0))*INDEX(PROJEKTIPARAMETRIT!$B$12:$H$12,1,MATCH(Projektin_tiedot[[#Headers],[ASIAKKUUSPÄÄLLIKKÖ]],Parametrit[#Headers],0))*Projektin_tiedot[[#This Row],[TOTEUTUNUT TYÖMÄÄRÄ]] -> 5,220 € | S8: =INDEX(Parametrit[],MATCH(Projektin_tiedot[[#This Row],[PROJEKTIN TYYPPI]],Parametrit[PROJEKTIN TYYPPI],0),MATCH(Projektin_tiedot[[#Headers],[PROJEKTIPÄÄLLIKKÖ]],Parametrit[#Headers],0))*INDEX(PROJEKTIPARAMETRIT!$B$12:$H$12,1,MATCH(Projektin_tiedot[[#Headers],[PROJEKTIPÄÄLLIKKÖ]],Parametrit[#Headers],0))*Projektin_tiedot[[#This Row],[TOTEUTUNUT TYÖMÄÄRÄ]] -> 10,440 € | T8: =INDEX(Parametrit[],MATCH(Projektin_tiedot[[#This Row],[PROJEKTIN TYYPPI]],Parametrit[PROJEKTIN TYYPPI],0),MATCH(Projektin_tiedot[[#Headers],[STRATEGIAPÄÄLLIKKÖ]],Parametrit[#Headers],0))*INDEX(PROJEKTIPARAMETRIT!$B$12:$H$12,1,MATCH(Projektin_tiedot[[#Headers],[STRATEGIAPÄÄLLIKKÖ]],Parametrit[#Headers],0))*Projektin_tiedot[[#This Row],[TOTEUTUNUT TYÖMÄÄRÄ]] -> 0 € | U8: =INDEX(Parametrit[],MATCH(Projektin_tiedot[[#This Row],[PROJEKTIN TYYPPI]],Parametrit[PROJEKTIN TYYPPI],0),MATCH(Projektin_tiedot[[#Headers],[ULKOASUN SUUNNITTELIJA]],Parametrit[#Headers],0))*INDEX(PROJEKTIPARAMETRIT!$B$12:$H$12,1,MATCH(Projektin_tiedot[[#Headers],[ULKOASUN SUUNNITTELIJA]],Parametrit[#Headers],0))*Projektin_tiedot[[#This Row],[TOTEUTUNUT TYÖMÄÄRÄ]] -> 0 € | V8: =INDEX(Parametrit[],MATCH(Projektin_tiedot[[#This Row],[PROJEKTIN TYYPPI]],Parametrit[PROJEKTIN TYYPPI],0),MATCH(Projektin_tiedot[[#Headers],[TAPAHTUMAN HENKILÖSTÖ]],Parametrit[#Headers],0))*INDEX(PROJEKTIPARAMETRIT!$B$12:$H$12,1,MATCH(Projektin_tiedot[[#Headers],[TAPAHTUMAN HENKILÖSTÖ]],Parametrit[#Headers],0))*Projektin_tiedot[[#This Row],[TOTEUTUNUT TYÖMÄÄRÄ]] -> 1,160 € | W8: =INDEX(Parametrit[],MATCH(Projektin_tiedot[[#This Row],[PROJEKTIN TYYPPI]],Parametrit[PROJEKTIN TYYPPI],0),MATCH(Projektin_tiedot[[#Headers],[JÄRJESTELMÄN-VALVONTA]],Parametrit[#Headers],0))*INDEX(PROJEKTIPARAMETRIT!$B$12:$H$12,1,MATCH(Projektin_tiedot[[#Headers],[JÄRJESTELMÄN-VALVONTA]],Parametrit[#Headers],0))*Projektin_tiedot[[#This Row],[TOTEUTUNUT TYÖMÄÄRÄ]] -> 870 €
B9: Projekti 5 | C9: Tapahtuman henkilöstö | D9: =DATE(YEAR(TODAY())+4,8,11) -> 2026-08-11 | E9: =DATE(YEAR(TODAY())+4,8,21) -> 2026-08-21 | F9: =DATE(YEAR(TODAY())+4,9,14) -> 2026-09-14 | G9: =DATE(YEAR(TODAY())+4,9,25) -> 2026-09-25 | H9: 250 | I9: 255 | J9: =DAYS360(Projektin_tiedot[[#This Row],[ARVIOITU ALOITUSAIKA]],Projektin_tiedot[[#This Row],[ARVIOITU PÄÄTTYMISAIKA]],FALSE) -> 10 | K9: =DAYS360(Projektin_tiedot[[#This Row],[TOTEUTUNUT ALOITUSAIKA]],Projektin_tiedot[[#This Row],[TOTEUTUNUT PÄÄTTYMISAIKA]],FALSE) -> 11 | L9: =INDEX(Parametrit[],MATCH(Projektin_tiedot[[#This Row],[PROJEKTIN TYYPPI]],Parametrit[PROJEKTIN TYYPPI],0),MATCH(Projektin_tiedot[[#Headers],[ASIAKKUUSPÄÄLLIKKÖ]],Parametrit[#Headers],0))*INDEX(PROJEKTIPARAMETRIT!$B$12:$H$12,1,MATCH(Projektin_tiedot[[#Headers],[ASIAKKUUSPÄÄLLIKKÖ]],Parametrit[#Headers],0))*Projektin_tiedot[[#This Row],[ARVIOITU TYÖMÄÄRÄ]] -> 9,000 € | M9: =INDEX(Parametrit[],MATCH(Projektin_tiedot[[#This Row],[PROJEKTIN TYYPPI]],Parametrit[PROJEKTIN TYYPPI],0),MATCH(Projektin_tiedot[[#Headers],[PROJEKTIPÄÄLLIKKÖ]],Parametrit[#Headers],0))*INDEX(PROJEKTIPARAMETRIT!$B$12:$H$12,1,MATCH(Projektin_tiedot[[#Headers],[PROJEKTIPÄÄLLIKKÖ]],Parametrit[#Headers],0))*Projektin_tiedot[[#This Row],[ARVIOITU TYÖMÄÄRÄ]] -> 3,000 € | N9: =INDEX(Parametrit[],MATCH(Projektin_tiedot[[#This Row],[PROJEKTIN TYYPPI]],Parametrit[PROJEKTIN TYYPPI],0),MATCH(Projektin_tiedot[[#Headers],[STRATEGIAPÄÄLLIKKÖ]],Parametrit[#Headers],0))*INDEX(PROJEKTIPARAMETRIT!$B$12:$H$12,1,MATCH(Projektin_tiedot[[#Headers],[STRATEGIAPÄÄLLIKKÖ]],Parametrit[#Headers],0))*Projektin_tiedot[[#This Row],[ARVIOITU TYÖMÄÄRÄ]] -> 0 € | O9: =INDEX(Parametrit[],MATCH(Projektin_tiedot[[#This Row],[PROJEKTIN TYYPPI]],Parametrit[PROJEKTIN TYYPPI],0),MATCH(Projektin_tiedot[[#Headers],[ULKOASUN SUUNNITTELIJA]],Parametrit[#Headers],0))*INDEX(PROJEKTIPARAMETRIT!$B$12:$H$12,1,MATCH(Projektin_tiedot[[#Headers],[ULKOASUN SUUNNITTELIJA]],Parametrit[#Headers],0))*Projektin_tiedot[[#This Row],[ARVIOITU TYÖMÄÄRÄ]] -> 0 € | P9: =INDEX(Parametrit[],MATCH(Projektin_tiedot[[#This Row],[PROJEKTIN TYYPPI]],Parametrit[PROJEKTIN TYYPPI],0),MATCH(Projektin_tiedot[[#Headers],[TAPAHTUMAN HENKILÖSTÖ]],Parametrit[#Headers],0))*INDEX(PROJEKTIPARAMETRIT!$B$12:$H$12,1,MATCH(Projektin_tiedot[[#Headers],[TAPAHTUMAN HENKILÖSTÖ]],Parametrit[#Headers],0))*Projektin_tiedot[[#This Row],[ARVIOITU TYÖMÄÄRÄ]] -> 12,000 € | Q9: =INDEX(Parametrit[],MATCH(Projektin_tiedot[[#This Row],[PROJEKTIN TYYPPI]],Parametrit[PROJEKTIN TYYPPI],0),MATCH(Projektin_tiedot[[#Headers],[JÄRJESTELMÄN-VALVONTA]],Parametrit[#Headers],0))*INDEX(PROJEKTIPARAMETRIT!$B$12:$H$12,1,MATCH(Projektin_tiedot[[#Headers],[JÄRJESTELMÄN-VALVONTA]],Parametrit[#Headers],0))*Projektin_tiedot[[#This Row],[ARVIOITU TYÖMÄÄRÄ]] -> 1,500 € | R9: =INDEX(Parametrit[],MATCH(Projektin_tiedot[[#This Row],[PROJEKTIN TYYPPI]],Parametrit[PROJEKTIN TYYPPI],0),MATCH(Projektin_tiedot[[#Headers],[ASIAKKUUSPÄÄLLIKKÖ]],Parametrit[#Headers],0))*INDEX(PROJEKTIPARAMETRIT!$B$12:$H$12,1,MATCH(Projektin_tiedot[[#Headers],[ASIAKKUUSPÄÄLLIKKÖ]],Parametrit[#Headers],0))*Projektin_tiedot[[#This Row],[TOTEUTUNUT TYÖMÄÄRÄ]] -> 9,180 € | S9: =INDEX(Parametrit[],MATCH(Projektin_tiedot[[#This Row],[PROJEKTIN TYYPPI]],Parametrit[PROJEKTIN TYYPPI],0),MATCH(Projektin_tiedot[[#Headers],[PROJEKTIPÄÄLLIKKÖ]],Parametrit[#Headers],0))*INDEX(PROJEKTIPARAMETRIT!$B$12:$H$12,1,MATCH(Projektin_tiedot[[#Headers],[PROJEKTIPÄÄLLIKKÖ]],Parametrit[#Headers],0))*Projektin_tiedot[[#This Row],[TOTEUTUNUT TYÖMÄÄRÄ]] -> 3,060 € | T9: =INDEX(Parametrit[],MATCH(Projektin_tiedot[[#This Row],[PROJEKTIN TYYPPI]],Parametrit[PROJEKTIN TYYPPI],0),MATCH(Projektin_tiedot[[#Headers],[STRATEGIAPÄÄLLIKKÖ]],Parametrit[#Headers],0))*INDEX(PROJEKTIPARAMETRIT!$B$12:$H$12,1,MATCH(Projektin_tiedot[[#Headers],[STRATEGIAPÄÄLLIKKÖ]],Parametrit[#Headers],0))*Projektin_tiedot[[#This Row],[TOTEUTUNUT TYÖMÄÄRÄ]] -> 0 € | U9: =INDEX(Parametrit[],MATCH(Projektin_tiedot[[#This Row],[PROJEKTIN TYYPPI]],Parametrit[PROJEKTIN TYYPPI],0),MATCH(Projektin_tiedot[[#Headers],[ULKOASUN SUUNNITTELIJA]],Parametrit[#Headers],0))*INDEX(PROJEKTIPARAMETRIT!$B$12:$H$12,1,MATCH(Projektin_tiedot[[#Headers],[ULKOASUN SUUNNITTELIJA]],Parametrit[#Headers],0))*Projektin_tiedot[[#This Row],[TOTEUTUNUT TYÖMÄÄRÄ]] -> 0 € | V9: =INDEX(Parametrit[],MATCH(Projektin_tiedot[[#This Row],[PROJEKTIN TYYPPI]],Parametrit[PROJEKTIN TYYPPI],0),MATCH(Projektin_tiedot[[#Headers],[TAPAHTUMAN HENKILÖSTÖ]],Parametrit[#Headers],0))*INDEX(PROJEKTIPARAMETRIT!$B$12:$H$12,1,MATCH(Projektin_tiedot[[#Headers],[TAPAHTUMAN HENKILÖSTÖ]],Parametrit[#Headers],0))*Projektin_tiedot[[#This Row],[TOTEUTUNUT TYÖMÄÄRÄ]] -> 12,240 € | W9: =INDEX(Parametrit[],MATCH(Projektin_tiedot[[#This Row],[PROJEKTIN TYYPPI]],Parametrit[PROJEKTIN TYYPPI],0),MATCH(Projektin_tiedot[[#Headers],[JÄRJESTELMÄN-VALVONTA]],Parametrit[#Headers],0))*INDEX(PROJEKTIPARAMETRIT!$B$12:$H$12,1,MATCH(Projektin_tiedot[[#Headers],[JÄRJESTELMÄN-VALVONTA]],Parametrit[#Headers],0))*Projektin_tiedot[[#This Row],[TOTEUTUNUT TYÖMÄÄRÄ]] -> 1,530 €
B10: SUMMA | H10: =SUBTOTAL(109,Projektin_tiedot[ARVIOITU TYÖMÄÄRÄ]) -> 1500 | I10: =SUBTOTAL(109,Projektin_tiedot[TOTEUTUNUT TYÖMÄÄRÄ]) -> 1510 | J10: =SUBTOTAL(109,Projektin_tiedot[ARVIOITU KESTO]) -> 225 | K10: =SUBTOTAL(109,Projektin_tiedot[TOTEUTUNUT KESTO]) -> 597

Sheet PROJEKTIN SUMMAT
B1: =PROJEKTIPARAMETRIT!B1 -> Yrityksen nimi
B2: Tapahtumanhallintaprojektin seuranta
B3: =PROJEKTIPARAMETRIT!B3 -> Yrityksen nimi Luottamuksellinen
A4: Oikeanpuoleisesta solusta alkava Pivot-taulukko päivittyy automaattisesti. TIEDOKSI Voit päivittää oikealla olevan Pivot-taulukon valitsemalla sen (siis minkä tahansa Pivot-taulukon solun) ja valitsemalla sitten PIVOT-TAULUKKOTYÖKALUT | ANALYSOI -valintanauhan välilehdessä Päivitä. Voit vaihtoehtoisesti painaa VAIHTO+F10 missä tahansa Pivot-taulukon solussa ja valita sitten Päivitä. | B4: PROJEKTIN NIMI | C4: ASIAKKUUS-PÄÄLLIKKÖ, ARVIO | D4: PROJEKTI-PÄÄLLIKKÖ, ARVIO | E4: STRATEGIA-PÄÄLLIKKÖ, ARVIO | F4: ULKOASUN SUUNNITTELIJA, ARVIO | G4: TAPAHTUMAN HENKILÖSTÖ, ARVIO | H4: JÄRJESTELMÄN-VALVONTA, ARVIO | I4: ASIAKAKKUUS-PÄÄLLIKKÖ, TOTEUTUNUT | J4: PROJEKTI-PÄÄLLIKKÖ, TOTEUTUNUT | K4: STRATEGIA-PÄÄLLIKKÖ, TOTEUTUNUT | L4: ULKOASUN SUUNNITTELIJA, TOTEUTUNUT | M4: TAPAHTUMAN HENKILÖSTÖ, TOTEUTUNUT | N4: JÄRJESTELMÄN-VALVONTA, TOTEUTUNUT
B5: Projekti 1 | C5: 7,200.00 € | D5: 2,400.00 € | E5: 1,200.00 € | F5: 7,920.00 € | G5: 2,640.00 € | H5: 19,800.00 € | I5: 18,000.00 € | J5: 0.00 € | K5: 0.00 € | L5: 0.00 € | M5: 0.00 € | N5: 1,320.00 €
B6: Projekti 2 | C6: 14,400.00 € | D6: 24,000.00 € | E6: 2,400.00 € | F6: 14,040.00 € | G6: 23,400.00 € | H6: 5,850.00 € | I6: 6,000.00 € | J6: 3,900.00 € | K6: 4,000.00 € | L6: 0.00 € | M6: 0.00 € | N6: 2,340.00 €
B7: Projekti 3 | C7: 18,000.00 € | D7: 12,000.00 € | E7: 3,000.00 € | F7: 18,000.00 € | G7: 12,000.00 € | H7: 0.00 € | I7: 0.00 € | J7: 25,000.00 € | K7: 25,000.00 € | L7: 0.00 € | M7: 0.00 € | N7: 3,000.00 €
B8: Projekti 4 | C8: 5,400.00 € | D8: 10,800.00 € | E8: 900.00 € | F8: 5,220.00 € | G8: 10,440.00 € | H8: 0.00 € | I8: 0.00 € | J8: 0.00 € | K8: 0.00 € | L8: 1,160.00 € | M8: 1,200.00 € | N8: 870.00 €
B9: Projekti 5 | C9: 9,000.00 € | D9: 3,000.00 € | E9: 1,500.00 € | F9: 9,180.00 € | G9: 3,060.00 € | H9: 0.00 € | I9: 0.00 € | J9: 0.00 € | K9: 0.00 € | L9: 12,240.00 € | M9: 12,000.00 € | N9: 1,530.00 €
B10: Kaikki yhteensä | C10: 54,000.00 € | D10: 52,200.00 € | E10: 9,000.00 € | F10: 54,360.00 € | G10: 51,540.00 € | H10: 25,650.00 € | I10: 24,000.00 € | J10: 28,900.00 € | K10: 29,000.00 € | L10: 13,400.00 € | M10: 13,200.00 € | N10: 9,060.00 €
